[Event "Early-Titled-Tuesday-Blitz-September-26-2023"]
[Site "Chess.com"]
[Date "2023.09.26"]
[Round "4"]
[White "stepanosinovsky"]
[Black "FoxOnTheRun97"]
[Result "1-0"]
[WhiteElo "2355"]
[BlackElo "2544"]
[TimeControl "180+1"]
[EndTime "8:39:42 PDT"]
[Termination "stepanosinovsky won by checkmate"]

1. Nf3 {[%clk 0:03:00.9]} 1... Nf6 {[%clk 0:02:59.7]} 2. g3 {[%clk 0:03:01.8]}
2... d5 {[%clk 0:02:58.8]} 3. Bg2 {[%clk 0:03:02.7]} 3... Bf5 {[%clk 0:02:59.2]}
4. O-O {[%clk 0:03:03.6]} 4... e6 {[%clk 0:02:59.7]} 5. d3 {[%clk 0:03:04.4]}
5... h6 {[%clk 0:03:00.1]} 6. Nbd2 {[%clk 0:03:04.8]} 6... c6 {[%clk 0:02:58.1]}
7. b3 {[%clk 0:03:03.4]} 7... Nbd7 {[%clk 0:02:51.6]} 8. Bb2 {[%clk 0:03:02.6]}
8... Bc5 {[%clk 0:02:46.1]} 9. c4 {[%clk 0:02:50.7]} 9... O-O {[%clk 0:02:43.3]}
10. Rc1 {[%clk 0:02:50]} 10... Qe7 {[%clk 0:02:38.5]} 11. Rc2 {[%clk 0:02:46]}
11... a5 {[%clk 0:02:37.1]} 12. cxd5 {[%clk 0:01:49]} 12... exd5 {[%clk
0:02:35.1]} 13. e4 {[%clk 0:01:37.5]} 13... dxe4 {[%clk 0:02:25.1]} 14. dxe4
{[%clk 0:01:36.8]} 14... Nxe4 {[%clk 0:02:10.5]} 15. Nh4 {[%clk 0:01:07.6]}
15... Bh7 {[%clk 0:01:53.8]} 16. Nxe4 {[%clk 0:00:54.6]} 16... Bxe4 {[%clk
0:01:52.4]} 17. Re2 {[%clk 0:00:25.2]} 17... f5 {[%clk 0:01:40.6]} 18. Nxf5
{[%clk 0:00:20.7]} 18... Rxf5 {[%clk 0:01:37.5]} 19. Bxe4 {[%clk 0:00:21]} 19...
Re5 {[%clk 0:01:10.3]} 20. Bxe5 {[%clk 0:00:15.8]} 20... Nxe5 {[%clk 0:01:11.2]}
21. Qa1 {[%clk 0:00:10.6]} 21... Kh8 {[%clk 0:00:46.3]} 22. Bxc6 {[%clk
0:00:06.3]} 22... Bd6 {[%clk 0:00:28.9]} 23. Bd5 {[%clk 0:00:05.4]} 23... Qg5
{[%clk 0:00:17.3]} 24. f4 {[%clk 0:00:03.6]} 24... Bc5+ {[%clk 0:00:12]} 25. Kg2
{[%clk 0:00:02.5]} 25... Qh5 {[%clk 0:00:05.4]} 26. Qxe5 {[%clk 0:00:02.7]}
26... Qg6 {[%clk 0:00:04.9]} 27. Qe4 {[%clk 0:00:02.6]} 27... Qh5 {[%clk
0:00:04.9]} 28. Rd1 {[%clk 0:00:01.5]} 28... Rf8 {[%clk 0:00:04.1]} 29. Bc4
{[%clk 0:00:01.2]} 29... b5 {[%clk 0:00:04]} 30. Rd5 {[%clk 0:00:01.4]} 30...
Qf7 {[%clk 0:00:01.6]} 31. Bd3 {[%clk 0:00:02.1]} 31... Qc7 {[%clk 0:00:01.6]}
32. Qh7# {[%clk 0:00:01.8]} 1-0

[Event "Early-Titled-Tuesday-Blitz-September-26-2023"]
[Site "Chess.com"]
[Date "2023.09.26"]
[Round "4"]
[White "Djager97"]
[Black "Zurability"]
[Result "0-1"]
[WhiteElo "2556"]
[BlackElo "2747"]
[TimeControl "180+1"]
[EndTime "8:39:44 PDT"]
[Termination "Zurability won on time"]

1. e4 {[%clk 0:03:00.9]} 1... c5 {[%clk 0:03:00.2]} 2. Nf3 {[%clk 0:03:00.3]}
2... d6 {[%clk 0:03:00.3]} 3. d4 {[%clk 0:02:58.4]} 3... cxd4 {[%clk 0:03:01.2]}
4. Nxd4 {[%clk 0:02:59]} 4... Nf6 {[%clk 0:03:01.8]} 5. Nc3 {[%clk 0:02:58.3]}
5... g6 {[%clk 0:03:02.4]} 6. Be3 {[%clk 0:02:45.7]} 6... Bg7 {[%clk 0:03:02.7]}
7. f3 {[%clk 0:02:45.6]} 7... a6 {[%clk 0:03:01.9]} 8. Qd2 {[%clk 0:02:45.8]}
8... Nbd7 {[%clk 0:03:01.8]} 9. O-O-O {[%clk 0:02:44]} 9... b5 {[%clk
0:03:01.9]} 10. Bh6 {[%clk 0:02:42.9]} 10... Bxh6 {[%clk 0:03:01.6]} 11. Qxh6
{[%clk 0:02:43.8]} 11... Bb7 {[%clk 0:03:02.2]} 12. Kb1 {[%clk 0:02:36.5]} 12...
Rc8 {[%clk 0:03:02.1]} 13. Nd5 {[%clk 0:02:30.6]} 13... Nxd5 {[%clk 0:02:45.9]}
14. exd5 {[%clk 0:02:31.5]} 14... Nf6 {[%clk 0:02:45.2]} 15. Bd3 {[%clk
0:02:16.5]} 15... Bxd5 {[%clk 0:02:41.6]} 16. Rhe1 {[%clk 0:02:15.7]} 16... Kd7
{[%clk 0:02:26.4]} 17. g4 {[%clk 0:02:04.7]} 17... Qb6 {[%clk 0:02:09.6]} 18.
Qe3 {[%clk 0:01:36.7]} 18... Rhe8 {[%clk 0:02:05.8]} 19. g5 {[%clk 0:01:35.8]}
19... Nh5 {[%clk 0:02:03.8]} 20. f4 {[%clk 0:01:30.9]} 20... e6 {[%clk
0:01:52.6]} 21. Be2 {[%clk 0:01:09.1]} 21... Ng7 {[%clk 0:01:49.9]} 22. Qh3
{[%clk 0:01:08.1]} 22... Rh8 {[%clk 0:01:14.9]} 23. Bf3 {[%clk 0:01:02.8]} 23...
Bxf3 {[%clk 0:01:09.6]} 24. Nxf3 {[%clk 0:00:52.6]} 24... Nf5 {[%clk 0:01:05.8]}
25. Ne5+ {[%clk 0:00:24.4]} 25... Ke7 {[%clk 0:01:05.6]} 26. Ng4 {[%clk
0:00:25.1]} 26... Rc4 {[%clk 0:00:33.1]} 27. Nf6 {[%clk 0:00:20.2]} 27... Qf2
{[%clk 0:00:33.5]} 28. Qd3 {[%clk 0:00:18.4]} 28... h6 {[%clk 0:00:20.5]} 29.
Nd5+ {[%clk 0:00:11.4]} 29... Kf8 {[%clk 0:00:18.2]} 30. b3 {[%clk 0:00:05.9]}
30... Rc8 {[%clk 0:00:11.4]} 31. Nf6 {[%clk 0:00:02.4]} 31... hxg5 {[%clk
0:00:11.2]} 32. fxg5 {[%clk 0:00:02.9]} 32... Rxh2 {[%clk 0:00:11]} 33. Rc1
{[%clk 0:00:03.6]} 33... Qd4 {[%clk 0:00:09.1]} 34. Qf3 {[%clk 0:00:02.2]} 34...
d5 {[%clk 0:00:05.1]} 0-1

[Event "Early-Titled-Tuesday-Blitz-September-26-2023"]
[Site "Chess.com"]
[Date "2023.09.26"]
[Round "4"]
[White "PawnEatingZombie"]
[Black "TomLiu777"]
[Result "0-1"]
[WhiteElo "2159"]
[BlackElo "2362"]
[TimeControl "180+1"]
[EndTime "8:39:44 PDT"]
[Termination "TomLiu777 won on time"]

1. e4 {[%clk 0:03:00.9]} 1... c6 {[%clk 0:02:54.9]} 2. d3 {[%clk 0:02:58.9]}
2... d5 {[%clk 0:02:54.9]} 3. Nd2 {[%clk 0:02:59.4]} 3... Nf6 {[%clk 0:02:53.6]}
4. Ngf3 {[%clk 0:02:59.9]} 4... e6 {[%clk 0:02:53]} 5. g3 {[%clk 0:02:57.1]}
5... Be7 {[%clk 0:02:53.2]} 6. Bg2 {[%clk 0:02:57.1]} 6... O-O {[%clk
0:02:53.7]} 7. O-O {[%clk 0:02:55.1]} 7... b6 {[%clk 0:02:52.3]} 8. Re1 {[%clk
0:02:53.8]} 8... Bb7 {[%clk 0:02:52.7]} 9. e5 {[%clk 0:02:50.9]} 9... Nfd7
{[%clk 0:02:51.8]} 10. Nf1 {[%clk 0:02:46.7]} 10... c5 {[%clk 0:02:50.1]} 11. h4
{[%clk 0:02:44.6]} 11... Nc6 {[%clk 0:02:48.6]} 12. Bf4 {[%clk 0:02:44.2]} 12...
Nd4 {[%clk 0:01:56.5]} 13. N1h2 {[%clk 0:02:37.3]} 13... Rc8 {[%clk 0:01:49.8]}
14. c3 {[%clk 0:02:33]} 14... Nxf3+ {[%clk 0:01:49.2]} 15. Qxf3 {[%clk
0:02:11.6]} 15... Rc7 {[%clk 0:01:42.3]} 16. d4 {[%clk 0:02:06.2]} 16... Nb8
{[%clk 0:01:38.8]} 17. Qg4 {[%clk 0:01:56.3]} 17... cxd4 {[%clk 0:01:31.8]} 18.
Bh6 {[%clk 0:01:45]} 18... g6 {[%clk 0:01:23.6]} 19. Bxf8 {[%clk 0:01:44.7]}
19... Qxf8 {[%clk 0:01:24.5]} 20. cxd4 {[%clk 0:01:45.1]} 20... Nc6 {[%clk
0:01:22.7]} 21. Nf3 {[%clk 0:01:45.3]} 21... Nb4 {[%clk 0:01:18.8]} 22. Rec1
{[%clk 0:01:37.1]} 22... Rxc1+ {[%clk 0:01:15.6]} 23. Rxc1 {[%clk 0:01:36.4]}
23... h5 {[%clk 0:01:11.6]} 24. Qf4 {[%clk 0:01:18.8]} 24... Nd3 {[%clk
0:00:45.6]} 25. Qe3 {[%clk 0:01:18.9]} 25... Nxc1 {[%clk 0:00:43.4]} 26. Qxc1
{[%clk 0:01:19.8]} 26... Qe8 {[%clk 0:00:37.1]} 27. Qc7 {[%clk 0:01:08.5]} 27...
Ba6 {[%clk 0:00:19.4]} 28. Qxa7 {[%clk 0:00:45.1]} 28... Be2 {[%clk 0:00:13.9]}
29. Qxb6 {[%clk 0:00:40.3]} 29... Qd8 {[%clk 0:00:14.1]} 30. Qxd8+ {[%clk
0:00:39.6]} 30... Bxd8 {[%clk 0:00:14.9]} 31. Ne1 {[%clk 0:00:09.6]} 31... Bb6
{[%clk 0:00:13.6]} 32. Bf1 {[%clk 0:00:09.1]} 32... Bd1 {[%clk 0:00:10.3]} 33.
f4 {[%clk 0:00:03.7]} 33... Bxd4+ {[%clk 0:00:10]} 34. Kh2 {[%clk 0:00:03.4]}
34... Bxb2 {[%clk 0:00:10.9]} 0-1

[Event "Early-Titled-Tuesday-Blitz-September-26-2023"]
[Site "Chess.com"]
[Date "2023.09.26"]
[Round "4"]
[White "platy3"]
[Black "Journey_to_GrandMaster_YT"]
[Result "0-1"]
[WhiteElo "2857"]
[BlackElo "2605"]
[TimeControl "180+1"]
[EndTime "8:39:45 PDT"]
[Termination "Journey_to_GrandMaster_YT won by resignation"]

1. e4 {[%clk 0:02:58.4]} 1... d6 {[%clk 0:03:00.9]} 2. d4 {[%clk 0:02:58]} 2...
Nf6 {[%clk 0:03:01.6]} 3. Nc3 {[%clk 0:02:58.6]} 3... e5 {[%clk 0:03:02.4]} 4.
Nge2 {[%clk 0:02:56.5]} 4... c6 {[%clk 0:03:02.4]} 5. g3 {[%clk 0:02:55.7]} 5...
b5 {[%clk 0:03:03]} 6. a3 {[%clk 0:02:53.5]} 6... Bb7 {[%clk 0:03:03.5]} 7. Bg2
{[%clk 0:02:53.7]} 7... Be7 {[%clk 0:03:03.8]} 8. O-O {[%clk 0:02:53.7]} 8...
Nbd7 {[%clk 0:03:04.4]} 9. h3 {[%clk 0:02:53.8]} 9... O-O {[%clk 0:03:05]} 10.
Be3 {[%clk 0:02:53.7]} 10... a5 {[%clk 0:03:05.7]} 11. d5 {[%clk 0:02:40.8]}
11... cxd5 {[%clk 0:03:05.1]} 12. Nxd5 {[%clk 0:02:38.9]} 12... Nxd5 {[%clk
0:03:03]} 13. exd5 {[%clk 0:02:39.8]} 13... f5 {[%clk 0:02:54.1]} 14. f4 {[%clk
0:02:30]} 14... e4 {[%clk 0:02:49.8]} 15. a4 {[%clk 0:02:18.6]} 15... b4 {[%clk
0:02:48.3]} 16. c4 {[%clk 0:02:16.3]} 16... bxc3 {[%clk 0:02:41]} 17. Nxc3
{[%clk 0:02:14.6]} 17... Ba6 {[%clk 0:02:35.9]} 18. Rf2 {[%clk 0:02:12.5]} 18...
Nc5 {[%clk 0:02:32.5]} 19. Rd2 {[%clk 0:02:06.7]} 19... Nd3 {[%clk 0:02:30.7]}
20. Bf1 {[%clk 0:02:04.1]} 20... Bf6 {[%clk 0:02:29.2]} 21. Rb1 {[%clk
0:01:59.3]} 21... Nxb2 {[%clk 0:02:12.4]} 22. Rdxb2 {[%clk 0:01:59.1]} 22...
Bxc3 {[%clk 0:02:07.6]} 23. Rb6 {[%clk 0:01:59.5]} 23... Bxf1 {[%clk 0:02:05.2]}
24. Qxf1 {[%clk 0:02:00.4]} 24... Bb4 {[%clk 0:02:01.1]} 25. Qb5 {[%clk
0:01:53]} 25... Rc8 {[%clk 0:01:58.5]} 26. Rc6 {[%clk 0:01:49.1]} 26... Rb8
{[%clk 0:01:55.4]} 27. Qc4 {[%clk 0:01:47]} 27... Bc5 {[%clk 0:01:45.3]} 28. Re1
{[%clk 0:01:43.2]} 28... Rb4 {[%clk 0:01:45.8]} 29. Qc3 {[%clk 0:01:39.2]} 29...
Bxe3+ {[%clk 0:01:31.2]} 30. Rxe3 {[%clk 0:01:40.1]} 30... Rxa4 {[%clk
0:01:21.1]} 31. Rc7 {[%clk 0:01:39.7]} 31... Qf6 {[%clk 0:01:20.8]} 32. Qxf6
{[%clk 0:01:39.7]} 32... Rxf6 {[%clk 0:01:18]} 33. Ra7 {[%clk 0:01:38.1]} 33...
h5 {[%clk 0:01:09.6]} 34. h4 {[%clk 0:01:36]} 34... Rf7 {[%clk 0:00:57.6]} 35.
Ra6 {[%clk 0:01:34.7]} 35... Rb7 {[%clk 0:00:49]} 36. Rxd6 {[%clk 0:01:29.2]}
36... Rb2 {[%clk 0:00:48.9]} 37. Re1 {[%clk 0:01:27.1]} 37... Ra3 {[%clk
0:00:48.6]} 38. Rg6 {[%clk 0:01:26.7]} 38... Kf7 {[%clk 0:00:47.5]} 39. Re6
{[%clk 0:01:01.9]} 39... Rxg3+ {[%clk 0:00:46.5]} 40. Kh1 {[%clk 0:01:02.6]}
40... Rh3+ {[%clk 0:00:39.4]} 41. Kg1 {[%clk 0:01:03.2]} 41... Rxh4 {[%clk
0:00:39.5]} 42. Rd1 {[%clk 0:01:01.9]} 42... Rg4+ {[%clk 0:00:24.8]} 43. Kh1
{[%clk 0:01:02.1]} 43... Rxf4 {[%clk 0:00:24.8]} 44. Re5 {[%clk 0:01:00.8]}
44... Rb3 {[%clk 0:00:20.7]} 45. d6 {[%clk 0:00:58.8]} 45... Rd3 {[%clk
0:00:21]} 46. Rxd3 {[%clk 0:00:51.7]} 46... exd3 {[%clk 0:00:21.9]} 47. Rd5
{[%clk 0:00:52.4]} 47... Ke8 {[%clk 0:00:22.3]} 48. Kg2 {[%clk 0:00:48.7]} 48...
Kd7 {[%clk 0:00:21.2]} 49. Kg3 {[%clk 0:00:48.9]} 49... g5 {[%clk 0:00:20.9]}
50. Rxd3 {[%clk 0:00:46.7]} 50... h4+ {[%clk 0:00:21.1]} 51. Kh3 {[%clk
0:00:46.1]} 51... a4 {[%clk 0:00:21.3]} 52. Rd5 {[%clk 0:00:45.9]} 52... a3
{[%clk 0:00:21.1]} 53. Ra5 {[%clk 0:00:45.1]} 53... Rf3+ {[%clk 0:00:20.9]} 54.
Kg2 {[%clk 0:00:45]} 54... Rg3+ {[%clk 0:00:19.4]} 55. Kh2 {[%clk 0:00:44.9]}
55... Kxd6 {[%clk 0:00:19.9]} 56. Rxf5 {[%clk 0:00:45.5]} 56... Kc6 {[%clk
0:00:19.7]} 57. Ra5 {[%clk 0:00:45.5]} 57... Kb6 {[%clk 0:00:20.2]} 58. Ra8
{[%clk 0:00:45.5]} 58... Kb5 {[%clk 0:00:20.8]} 59. Rb8+ {[%clk 0:00:46.1]}
59... Kc4 {[%clk 0:00:21.1]} 60. Rc8+ {[%clk 0:00:46.8]} 60... Kb3 {[%clk
0:00:21.7]} 61. Rb8+ {[%clk 0:00:47.5]} 61... Ka2 {[%clk 0:00:22.4]} 62. Rb7
{[%clk 0:00:48]} 62... Rb3 {[%clk 0:00:22.7]} 63. Ra7 {[%clk 0:00:47.9]} 63...
Kb2 {[%clk 0:00:22.2]} 0-1

[Event "Early-Titled-Tuesday-Blitz-September-26-2023"]
[Site "Chess.com"]
[Date "2023.09.26"]
[Round "4"]
[White "Incognito_Knight"]
[Black "deribas12345"]
[Result "1-0"]
[WhiteElo "2756"]
[BlackElo "2559"]
[TimeControl "180+1"]
[EndTime "8:39:45 PDT"]
[Termination "Incognito_Knight won on time"]

1. b3 {[%clk 0:03:00]} 1... Nf6 {[%clk 0:02:59.1]} 2. Bb2 {[%clk 0:03:00.1]}
2... g6 {[%clk 0:02:57.2]} 3. Nf3 {[%clk 0:03:00]} 3... Bg7 {[%clk 0:02:56.9]}
4. c4 {[%clk 0:02:59.7]} 4... O-O {[%clk 0:02:56.5]} 5. g3 {[%clk 0:02:59.9]}
5... d6 {[%clk 0:02:55.3]} 6. d4 {[%clk 0:02:57.2]} 6... Bg4 {[%clk 0:02:46.7]}
7. Bg2 {[%clk 0:02:56.2]} 7... c5 {[%clk 0:02:40.8]} 8. O-O {[%clk 0:02:47.7]}
8... Nc6 {[%clk 0:02:22.8]} 9. d5 {[%clk 0:02:46.1]} 9... Bxf3 {[%clk 0:02:19]}
10. Bxf3 {[%clk 0:02:39.1]} 10... Nb8 {[%clk 0:02:10.9]} 11. Nc3 {[%clk
0:02:36.3]} 11... Nbd7 {[%clk 0:02:09.8]} 12. Bg2 {[%clk 0:02:35]} 12... a6
{[%clk 0:02:01.8]} 13. Qd2 {[%clk 0:02:30.4]} 13... Ne8 {[%clk 0:01:58.3]} 14.
e4 {[%clk 0:02:20.4]} 14... Qa5 {[%clk 0:01:52.4]} 15. a4 {[%clk 0:02:16.1]}
15... Nc7 {[%clk 0:01:37.3]} 16. Qc2 {[%clk 0:02:11]} 16... Rab8 {[%clk
0:01:21.1]} 17. Kh1 {[%clk 0:01:46]} 17... Qb4 {[%clk 0:01:15.4]} 18. f4 {[%clk
0:01:12.3]} 18... Qa5 {[%clk 0:00:56.7]} 19. e5 {[%clk 0:01:03.9]} 19... dxe5
{[%clk 0:00:55]} 20. f5 {[%clk 0:01:03.2]} 20... Ne8 {[%clk 0:00:50.8]} 21. fxg6
{[%clk 0:00:29.3]} 21... hxg6 {[%clk 0:00:49.7]} 22. Bh3 {[%clk 0:00:28.6]}
22... Rd8 {[%clk 0:00:43.8]} 23. Ne4 {[%clk 0:00:25.5]} 23... Nd6 {[%clk
0:00:37]} 24. Ng5 {[%clk 0:00:25.5]} 24... Qb6 {[%clk 0:00:19.9]} 25. Be6 {[%clk
0:00:15.5]} 25... e4 {[%clk 0:00:04.3]} 26. Bxg7 {[%clk 0:00:05.6]} 26... Kxg7
{[%clk 0:00:05.2]} 27. Bxf7 {[%clk 0:00:04.7]} 27... Nxf7 {[%clk 0:00:02.9]} 28.
Ne6+ {[%clk 0:00:04.6]} 28... Kg8 {[%clk 0:00:02.8]} 29. Qxe4 {[%clk 0:00:04.7]}
29... Nde5 {[%clk 0:00:02.5]} 30. Rxf7 {[%clk 0:00:03.5]} 30... Rxf7 {[%clk
0:00:01.7]} 31. Nxd8 {[%clk 0:00:03.1]} 1-0

[Event "Early-Titled-Tuesday-Blitz-September-26-2023"]
[Site "Chess.com"]
[Date "2023.09.26"]
[Round "4"]
[White "Elprofessor21"]
[Black "Dewarfd"]
[Result "1-0"]
[WhiteElo "2612"]
[BlackElo "2146"]
[TimeControl "180+1"]
[EndTime "8:39:46 PDT"]
[Termination "Elprofessor21 won by checkmate"]

1. d4 {[%clk 0:02:59.5]} 1... d5 {[%clk 0:03:00.4]} 2. Nf3 {[%clk 0:02:56.9]}
2... e6 {[%clk 0:03:00.1]} 3. Bf4 {[%clk 0:02:57.5]} 3... c5 {[%clk 0:02:58.9]}
4. e3 {[%clk 0:02:57.4]} 4... Bd6 {[%clk 0:02:58.7]} 5. Nc3 {[%clk 0:02:55.1]}
5... Nf6 {[%clk 0:02:54.8]} 6. Bb5+ {[%clk 0:02:53.2]} 6... Nc6 {[%clk
0:02:50.8]} 7. O-O {[%clk 0:02:53.3]} 7... Bxf4 {[%clk 0:02:48]} 8. exf4 {[%clk
0:02:52.8]} 8... cxd4 {[%clk 0:02:46.1]} 9. Nxd4 {[%clk 0:02:53.1]} 9... Bd7
{[%clk 0:02:46.6]} 10. Re1 {[%clk 0:02:50.7]} 10... O-O {[%clk 0:02:38.4]} 11.
Nf3 {[%clk 0:02:05.1]} 11... Qb6 {[%clk 0:02:04.9]} 12. Rb1 {[%clk 0:01:43]}
12... Rac8 {[%clk 0:01:54.7]} 13. Ne5 {[%clk 0:01:37.3]} 13... Rfd8 {[%clk
0:01:40.7]} 14. Bxc6 {[%clk 0:01:27.4]} 14... bxc6 {[%clk 0:01:34]} 15. b4
{[%clk 0:01:07.9]} 15... a5 {[%clk 0:01:23.7]} 16. Na4 {[%clk 0:01:04.8]} 16...
Qb5 {[%clk 0:01:07.3]} 17. c4 {[%clk 0:00:53]} 17... dxc4 {[%clk 0:00:59.8]} 18.
bxa5 {[%clk 0:00:43.9]} 18... Be8 {[%clk 0:00:30.4]} 19. Qc2 {[%clk 0:00:24.4]}
19... Qxa5 {[%clk 0:00:26.5]} 20. Nb6 {[%clk 0:00:22.9]} 20... Rd2 {[%clk
0:00:17.6]} 21. Qc1 {[%clk 0:00:09.6]} 21... Rcd8 {[%clk 0:00:15.9]} 22. Nbxc4
{[%clk 0:00:09.3]} 22... Qxa2 {[%clk 0:00:07.9]} 23. Nxd2 {[%clk 0:00:09.6]}
23... Rxd2 {[%clk 0:00:08.7]} 24. Ra1 {[%clk 0:00:10.2]} 24... Qb2 {[%clk
0:00:07.3]} 25. Qxb2 {[%clk 0:00:10.5]} 25... Rxb2 {[%clk 0:00:08.2]} 26. Ra8
{[%clk 0:00:11.2]} 26... g6 {[%clk 0:00:07.6]} 27. g3 {[%clk 0:00:09.8]} 27...
Kg7 {[%clk 0:00:07.6]} 28. g4 {[%clk 0:00:10.4]} 28... h6 {[%clk 0:00:07.8]} 29.
g5 {[%clk 0:00:10.9]} 29... hxg5 {[%clk 0:00:08]} 30. fxg5 {[%clk 0:00:11.8]}
30... Ng4 {[%clk 0:00:03.7]} 31. Nxg4 {[%clk 0:00:10.6]} 31... Bd7 {[%clk
0:00:01.9]} 32. Nf6 {[%clk 0:00:11.2]} 32... Rd2 {[%clk 0:00:01.4]} 33. Rg8#
{[%clk 0:00:11]} 1-0

[Event "Early-Titled-Tuesday-Blitz-September-26-2023"]
[Site "Chess.com"]
[Date "2023.09.26"]
[Round "4"]
[White "mapleaff"]
[Black "angryspacevoid"]
[Result "0-1"]
[WhiteElo "2337"]
[BlackElo "2530"]
[TimeControl "180+1"]
[EndTime "8:39:46 PDT"]
[Termination "angryspacevoid won on time"]

1. e4 {[%clk 0:02:59.9]} 1... d5 {[%clk 0:02:58.3]} 2. exd5 {[%clk 0:02:58.1]}
2... Nf6 {[%clk 0:02:58.8]} 3. Bb5+ {[%clk 0:02:57.5]} 3... Bd7 {[%clk
0:02:58.5]} 4. Be2 {[%clk 0:02:57.5]} 4... Bf5 {[%clk 0:02:57.1]} 5. Nf3 {[%clk
0:02:56.6]} 5... Nxd5 {[%clk 0:02:54.8]} 6. d4 {[%clk 0:02:53.9]} 6... e6 {[%clk
0:02:50.1]} 7. O-O {[%clk 0:02:53.6]} 7... Nc6 {[%clk 0:02:47.6]} 8. c4 {[%clk
0:02:52.6]} 8... Ndb4 {[%clk 0:02:46.3]} 9. Na3 {[%clk 0:02:29]} 9... Bg4 {[%clk
0:02:37.9]} 10. Be3 {[%clk 0:02:26.2]} 10... Be7 {[%clk 0:02:33.4]} 11. h3
{[%clk 0:02:24.6]} 11... Bh5 {[%clk 0:02:31.2]} 12. Nc2 {[%clk 0:02:06.2]} 12...
Nxc2 {[%clk 0:02:25.4]} 13. Qxc2 {[%clk 0:02:07.1]} 13... Bxf3 {[%clk
0:02:19.1]} 14. Bxf3 {[%clk 0:02:08]} 14... Nxd4 {[%clk 0:02:18.7]} 15. Bxd4
{[%clk 0:02:04.9]} 15... Qxd4 {[%clk 0:02:19.6]} 16. Bxb7 {[%clk 0:02:04.5]}
16... Rb8 {[%clk 0:02:20]} 17. Bc6+ {[%clk 0:02:04.5]} 17... Kf8 {[%clk
0:02:19.6]} 18. b3 {[%clk 0:02:02.5]} 18... Bd6 {[%clk 0:02:17.2]} 19. Rad1
{[%clk 0:01:53.6]} 19... Qe5 {[%clk 0:02:08.5]} 20. g3 {[%clk 0:01:53.2]} 20...
h5 {[%clk 0:02:07.2]} 21. Rfe1 {[%clk 0:01:41.7]} 21... Qc5 {[%clk 0:02:06]} 22.
Qe4 {[%clk 0:01:25.9]} 22... Bxg3 {[%clk 0:02:03.1]} 23. Re3 {[%clk 0:01:25.9]}
23... Bd6 {[%clk 0:01:54.2]} 24. Rf3 {[%clk 0:01:24.5]} 24... Rh6 {[%clk
0:01:53.7]} 25. Bd7 {[%clk 0:01:23.5]} 25... Kg8 {[%clk 0:01:53]} 26. Kh1 {[%clk
0:01:08.1]} 26... Rd8 {[%clk 0:01:43.9]} 27. Bc6 {[%clk 0:00:57.1]} 27... f5
{[%clk 0:01:28.7]} 28. Qh4 {[%clk 0:00:57.1]} 28... Be7 {[%clk 0:01:01.2]} 29.
Rxd8+ {[%clk 0:00:56.2]} 29... Kh7 {[%clk 0:01:01.4]} 30. Qf4 {[%clk 0:00:18.8]}
30... Bxd8 {[%clk 0:00:45.4]} 31. Be8 {[%clk 0:00:15.6]} 31... Be7 {[%clk
0:00:41.6]} 32. Qe3 {[%clk 0:00:14.7]} 32... Qd6 {[%clk 0:00:39.6]} 33. Qd3
{[%clk 0:00:14.4]} 33... Qe5 {[%clk 0:00:36.2]} 34. Re3 {[%clk 0:00:13.5]} 34...
Qf4 {[%clk 0:00:31.2]} 35. Bd7 {[%clk 0:00:10.6]} 35... Bd6 {[%clk 0:00:30]} 36.
Rg3 {[%clk 0:00:06]} 36... Qxf2 {[%clk 0:00:28.4]} 37. Rg2 {[%clk 0:00:05.3]}
37... Qe1+ {[%clk 0:00:23.9]} 38. Rg1 {[%clk 0:00:05.4]} 38... Qe5 {[%clk
0:00:24.6]} 39. Rg2 {[%clk 0:00:04.4]} 39... Rg6 {[%clk 0:00:23.8]} 40. Qf3
{[%clk 0:00:02.5]} 40... Qe1+ {[%clk 0:00:23.1]} 0-1

[Event "Early-Titled-Tuesday-Blitz-September-26-2023"]
[Site "Chess.com"]
[Date "2023.09.26"]
[Round "4"]
[White "sorch29"]
[Black "melissa_guez"]
[Result "0-1"]
[WhiteElo "2304"]
[BlackElo "2101"]
[TimeControl "180+1"]
[EndTime "8:39:46 PDT"]
[Termination "melissa_guez won by resignation"]

1. c4 {[%clk 0:03:00.9]} 1... c5 {[%clk 0:02:59.1]} 2. Nc3 {[%clk 0:02:56.1]}
2... Nf6 {[%clk 0:02:58.9]} 3. Nf3 {[%clk 0:02:52.6]} 3... d5 {[%clk 0:02:59]}
4. cxd5 {[%clk 0:02:53]} 4... Nxd5 {[%clk 0:02:59.9]} 5. e3 {[%clk 0:02:53.7]}
5... Nc6 {[%clk 0:02:59]} 6. Bb5 {[%clk 0:02:53.5]} 6... Nc7 {[%clk 0:02:46.3]}
7. Bc4 {[%clk 0:02:29.4]} 7... e5 {[%clk 0:02:16.4]} 8. O-O {[%clk 0:02:19.5]}
8... Be7 {[%clk 0:02:03.8]} 9. b3 {[%clk 0:02:13.2]} 9... O-O {[%clk 0:02:03]}
10. Bb2 {[%clk 0:02:13.4]} 10... Kh8 {[%clk 0:01:58.9]} 11. Nb5 {[%clk 0:01:50]}
11... Nxb5 {[%clk 0:01:35.1]} 12. Bxb5 {[%clk 0:01:49.7]} 12... f6 {[%clk
0:01:31.9]} 13. Bxc6 {[%clk 0:01:20]} 13... bxc6 {[%clk 0:01:31.3]} 14. d3
{[%clk 0:00:51.2]} 14... Ba6 {[%clk 0:01:24.8]} 15. Ne1 {[%clk 0:00:40.6]} 15...
e4 {[%clk 0:01:24.3]} 16. dxe4 {[%clk 0:00:39.4]} 16... Bxf1 {[%clk 0:01:06.9]}
17. Kxf1 {[%clk 0:00:40.3]} 17... Qxd1 {[%clk 0:00:56.9]} 18. Rxd1 {[%clk
0:00:41.2]} 18... Rfd8 {[%clk 0:00:56.6]} 19. Ke2 {[%clk 0:00:33.8]} 19... a5
{[%clk 0:00:54.2]} 20. Rxd8+ {[%clk 0:00:30.7]} 20... Rxd8 {[%clk 0:00:55.1]}
21. Nd3 {[%clk 0:00:19.5]} 21... a4 {[%clk 0:00:54.9]} 22. Ba3 {[%clk
0:00:19.5]} 22... axb3 {[%clk 0:00:52.9]} 23. axb3 {[%clk 0:00:20.4]} 23... Rb8
{[%clk 0:00:41.8]} 24. Nc1 {[%clk 0:00:15.1]} 24... c4 {[%clk 0:00:26.6]} 25.
Bxe7 {[%clk 0:00:13.6]} 25... cxb3 {[%clk 0:00:26.5]} 26. Nd3 {[%clk 0:00:10]}
26... b2 {[%clk 0:00:25.9]} 27. Nxb2 {[%clk 0:00:10.7]} 27... Rxb2+ {[%clk
0:00:26.4]} 28. Kf3 {[%clk 0:00:10.1]} 28... Kg8 {[%clk 0:00:25.6]} 29. g4
{[%clk 0:00:06]} 29... Kf7 {[%clk 0:00:25.7]} 30. Bc5 {[%clk 0:00:05.8]} 30...
Rc2 {[%clk 0:00:24.3]} 31. Bd6 {[%clk 0:00:06.2]} 31... c5 {[%clk 0:00:24.4]}
32. h4 {[%clk 0:00:06.3]} 32... c4 {[%clk 0:00:24.7]} 33. e5 {[%clk 0:00:05.2]}
33... c3 {[%clk 0:00:21.6]} 34. exf6 {[%clk 0:00:05.3]} 34... gxf6 {[%clk
0:00:21.4]} 35. Bb4 {[%clk 0:00:04.8]} 35... Rc1 {[%clk 0:00:19.4]} 36. Ke2
{[%clk 0:00:05.3]} 36... c2 {[%clk 0:00:16.8]} 37. Kd2 {[%clk 0:00:04.5]} 37...
Rb1 {[%clk 0:00:12.4]} 0-1